fUSD/lending_fUSD_20260617
["ID","MTS","AMOUNT","RATE_DAILY","PERIOD"]
[425337828,1781699440000,-151.0,0.00022016,2]
[425337821,1781699440000,-151.0,0.00022016,2]
[425337819,1781699440000,-500.0,0.00022016,2]
[425337811,1781699440000,-500.0,0.00022016,2]
[425337797,1781699440000,-151.0,0.00022016,2]
[425337782,1781699440000,-305.0,0.00022,2]
[425337754,1781699440000,-30002.24719725,0.00021544,2]
[425337777,1781699440000,-182.0,0.00022,2]
[425337747,1781699440000,-2636.03979174,0.00021544,2]
[425337749,1781699440000,-4058.36000011,0.00021544,2]
[425337830,1781699440000,-500.0,0.00022016,2]
[425337756,1781699440000,-316.39,0.00021559,2]
[425337755,1781699440000,-316.47,0.00021551,2]
[425337758,1781699440000,-316.56,0.00021559,2]
[425337757,1781699440000,-316.61,0.00021559,2]
[425337760,1781699440000,-154.74,0.00021614,2]
[425337773,1781699440000,-505.0,0.00021815,5]
[425337764,1781699440000,-745.15,0.00021623,2]
[425337770,1781699440000,-9999.99,0.00021757,2]
[425337759,1781699440000,-315.19,0.0002156,2]
[425337762,1781699440000,-500.0,0.00021623,2]
[425337771,1781699440000,-394.85,0.00021757,2]
[425337772,1781699440000,-9999.99,0.00021757,2]
[425337766,1781699440000,-500.0,0.00021623,2]
[425337769,1781699440000,-9999.99,0.00021757,2]
[425337768,1781699440000,-861.85740866,0.00021657,2]
[425337767,1781699440000,-224458.6607,0.00021624,2]
[425337775,1781699440000,-5000.0,0.00021918,2]
[425337774,1781699440000,-500.0,0.00021917,2]
[425337780,1781699440000,-152.0,0.00022,2]
[425337776,1781699440000,-150.0,0.00021918,2]
[425337778,1781699440000,-413.0,0.00022,2]
[425337781,1781699440000,-292.0,0.00022,2]
[425337786,1781699440000,-151.0,0.00022016,2]
[425337815,1781699440000,-500.0,0.00022016,2]
[425337850,1781699440000,-354.4,0.00022353,2]
[425337834,1781699440000,-500.0,0.00022016,2]
[425337875,1781699440000,-150.0,0.00023014,2]
[425337885,1781699440000,-154.380671,0.00024,2]
[425337877,1781699440000,-1970.98586926,0.00023112,2]
[425337881,1781699440000,-413.0,0.00024,2]
[425337880,1781699440000,-182.0,0.00024,2]
[425337879,1781699440000,-505.0,0.00023723,7]
[425337883,1781699440000,-292.0,0.00024,2]
[425337882,1781699440000,-182.0,0.00024,2]
[425337887,1781699440000,-353.23,0.0002411,2]
[425337889,1781699440000,-479.62,0.00024174,2]
[425337888,1781699440000,-150.0,0.00024164,2]
[425337878,1781699440000,-912.3,0.0002365,2]
[425337817,1781699440000,-151.0,0.00022016,2]
[425337897,1781699440000,-402.88,0.00024886,7]
[425337892,1781699440000,-402.37,0.00024658,2]
[425337896,1781699440000,-402.37,0.00024886,7]
[425337894,1781699440000,-505.0,0.00024677,8]
[425337895,1781699440000,-500.0,0.000247,2]
[425337893,1781699440000,-402.88,0.00024658,2]
[425337899,1781699440000,-199.0,0.00025,2]
[425337898,1781699440000,-939.65666677,0.00024908,2]
[425337900,1781699440000,-427.0,0.00025,2]
[425337902,1781699440000,-308.0,0.00025,2]
[425337901,1781699440000,-185.0,0.00025,2]
[425337890,1781699440000,-354.4,0.00024324,2]
[425337886,1781699440000,-283.08,0.0002408,2]
[425337891,1781699440000,-1000.0,0.00024658,2]
[425337884,1781699440000,-305.0,0.00024,2]
[425337876,1781699440000,-939.65666677,0.0002304,2]
[425337836,1781699440000,-151.0,0.00022016,2]
[425337838,1781699440000,-500.0,0.00022016,2]
[425337842,1781699440000,-151.0,0.00022016,2]
[425337844,1781699440000,-500.0,0.00022016,2]
[425337856,1781699440000,-1583.69,0.00022562,2]
[425337852,1781699440000,-403.69,0.00022466,2]
[425337840,1781699440000,-151.0,0.00022016,2]
[425337854,1781699440000,-2190.42,0.00022466,2]
[425337846,1781699440000,-500.0,0.00022016,2]
[425337858,1781699440000,-9999.99,0.00022562,2]
[425337860,1781699440000,-150.99,0.00022562,2]
[425337848,1781699440000,-214.72466429,0.00022016,2]
[425337873,1781699440000,-292.0,0.00023,2]
[425337874,1781699440000,-305.0,0.00023,2]
[425337867,1781699440000,-500.0,0.00022795,2]
[425337869,1781699440000,-182.0,0.00023,2]
[425337865,1781699440000,-1865.36488656,0.00022564,2]
[425337870,1781699440000,-413.0,0.00023,2]
[425337871,1781699440000,-182.0,0.00023,2]
[425337864,1781699440000,-299.99,0.00022562,7]
[425337868,1781699440000,-861.85740862,0.0002294,2]
[425337862,1781699440000,-19955.72,0.00022562,2]
[425337866,1781699440000,-505.0,0.00022769,6]
[425337872,1781699440000,-166.0,0.00023,2]
[425337947,1781699441000,-500.0,0.00026107,2]
[425337939,1781699441000,-155.1548579,0.00026107,2]
[425337942,1781699441000,-152.0,0.00026107,2]
[425337946,1781699441000,-152.0,0.00026107,2]
[425337944,1781699441000,-181.08010149,0.00026107,2]
[425337940,1781699441000,-156.80870372,0.00026107,2]
[425337938,1781699441000,-154.58503183,0.00026107,2]
[425337937,1781699441000,-4197.22089552,0.00026107,2]
[425337936,1781699441000,-181.08010149,0.00026107,2]
[425337935,1781699441000,-181.08010149,0.00026107,2]
[425337933,1781699441000,-152.60719171,0.00026107,2]
[425337941,1781699441000,-174.61919141,0.00026107,2]
[425337943,1781699441000,-151.0,0.00026107,2]
[425337957,1781699441000,-500.0,0.00026107,2]
[425337951,1781699441000,-151.0,0.00026107,2]
[425337949,1781699441000,-623.58710447,0.00026107,2]
[425337959,1781699441000,-152.0,0.00026107,2]
[425337948,1781699441000,-152.0,0.00026107,2]
[425337952,1781699441000,-578.20924308,0.00026107,2]
[425337958,1781699441000,-152.0,0.00026107,2]
[425337956,1781699441000,-152.0,0.00026107,2]
[425337950,1781699441000,-500.0,0.00026107,2]
[425337953,1781699441000,-500.0,0.00026107,2]
[425337954,1781699441000,-152.0,0.00026107,2]
[425337955,1781699441000,-500.0,0.00026107,2]
[425337928,1781699441000,-663.5190383,0.00026107,2]
[425337945,1781699441000,-500.0,0.00026107,2]
[425337929,1781699441000,-599.60298507,0.00026107,2]
[425337966,1781699441000,-152.0,0.00026107,2]
[425337931,1781699441000,-6660.13072236,0.00026107,2]
[425337963,1781699441000,-500.0,0.00026107,2]
[425337908,1781699441000,-170.0,0.00025343,2]
[425337909,1781699441000,-202.0,0.00025343,2]
[425337906,1781699441000,-402.37,0.00025115,30]
[425337907,1781699441000,-402.88,0.00025115,30]
[425337903,1781699441000,-311.0,0.00025,2]
[425337905,1781699441000,-296.49,0.00025034,2]
[425337904,1781699441000,-175.99,0.00025,2]
[425337910,1781699441000,-402.37,0.00025343,2]
[425337912,1781699441000,-150.0,0.00025373,2]
[425337915,1781699441000,-402.37,0.00025572,7]
[425337913,1781699441000,-188.0,0.00025397,2]
[425337911,1781699441000,-402.88,0.00025343,2]
[425337916,1781699441000,-402.88,0.00025572,7]
[425337919,1781699441000,-479.62,0.00025786,2]
[425337918,1781699441000,-2165.73,0.00025786,2]
[425337917,1781699441000,-505.0,0.00025631,9]
[425337922,1781699441000,-402.88,0.000258,30]
[425337920,1781699441000,-912.3,0.000258,2]
[425337921,1781699441000,-402.37,0.000258,30]
[425337934,1781699441000,-181.08010149,0.00026107,2]
[425337924,1781699441000,-252.31,0.00026027,7]
[425337926,1781699441000,-402.88,0.00026029,2]
[425337923,1781699441000,-154.380671,0.00026,2]
[425337925,1781699441000,-402.37,0.00026029,2]
[425337927,1781699441000,-1030.0,0.00026107,2]
[425337930,1781699441000,-181.08010149,0.00026107,2]
[425337932,1781699441000,-200.0,0.00026107,2]
[425337960,1781699441000,-500.0,0.00026107,2]
[425337988,1781699441000,-151.0,0.00026382,2]
[425337961,1781699441000,-152.0,0.00026107,2]
[425337998,1781699441000,-151.0,0.00026655,2]
[425337996,1781699441000,-181.08010149,0.00026655,2]
[425338006,1781699441000,-2000.0,0.0002693,2]
[425337997,1781699441000,-203.56087746,0.00026655,2]
[425338005,1781699441000,-151.0,0.00026877,2]
[425338001,1781699441000,-151.0,0.00026767,2]
[425338000,1781699441000,-151.0,0.00026712,2]
[425338004,1781699441000,-4637.79,0.0002687,7]
[425338002,1781699441000,-939.65666677,0.00026777,2]
[425337999,1781699441000,-151.0,0.00026657,2]
[425338003,1781699441000,-151.0,0.00026822,2]
[425338017,1781699441000,-173.5074467,0.00026994,7]
[425337995,1781699441000,-150.0,0.00026641,2]
[425338008,1781699441000,-2000.0,0.0002693,2]
[425338013,1781699441000,-158.30195934,0.00026992,7]
[425338015,1781699441000,-159.49210798,0.00026994,7]
[425338014,1781699441000,-151.42153245,0.00026992,7]
[425338007,1781699441000,-2000.0,0.0002693,2]
[425338018,1781699441000,-174.61919142,0.00027203,2]
[425338011,1781699441000,-169.28618589,0.00026992,7]
[425338012,1781699441000,-172.22116323,0.00026992,7]
[425338016,1781699441000,-159.41986841,0.00026994,7]
[425338022,1781699441000,-13997.74,0.00027397,10]
[425338019,1781699441000,-299.85582701,0.00027397,2]
[425338020,1781699441000,-1500.0,0.00027397,2]
[425337962,1781699441000,-500.0,0.00026107,2]
[425338009,1781699441000,-2053.0,0.0002693,2]
[425337992,1781699441000,-151.0,0.00026547,2]
[425338010,1781699441000,-202.0,0.00026987,2]
[425337994,1781699441000,-151.0,0.00026602,2]
[425337993,1781699441000,-505.0,0.00026585,10]
[425337969,1781699441000,-500.0,0.00026107,2]
[425337972,1781699441000,-500.0,0.00026107,2]
[425337964,1781699441000,-152.0,0.00026107,2]
[425337971,1781699441000,-152.0,0.00026107,2]
[425337967,1781699441000,-500.0,0.00026107,2]
[425337965,1781699441000,-500.0,0.00026107,2]
[425337968,1781699441000,-152.0,0.00026107,2]
[425337974,1781699441000,-152.0,0.00026107,2]
[425337983,1781699441000,-156.80870372,0.00026272,2]
[425337984,1781699441000,-151.0,0.00026272,2]
[425337973,1781699441000,-500.0,0.00026107,2]
[425337976,1781699441000,-151.0,0.00026162,2]
[425337982,1781699441000,-402.88,0.00026257,7]
[425337970,1781699441000,-500.0,0.00026107,2]
[425337986,1781699441000,-156.80870379,0.00026327,2]
[425337980,1781699441000,-364.74,0.00026257,7]
[425337975,1781699441000,-156.80870372,0.00026162,2]
[425337977,1781699441000,-202.0,0.00026165,2]
[425337979,1781699441000,-151.0,0.00026217,2]
[425337978,1781699441000,-156.80870372,0.00026217,2]
[425337985,1781699441000,-354.4,0.00026296,2]
[425337990,1781699441000,-151.0,0.00026492,2]
[425338021,1781699441000,-451.3266062,0.00027397,2]
[425337981,1781699441000,-402.37,0.00026257,7]
[425337987,1781699441000,-151.0,0.00026327,2]
[425337989,1781699441000,-151.0,0.00026437,2]
[425337991,1781699441000,-150.0,0.0002654,5]
[425338060,1781699442000,-237.4914839,0.00028272,7]
[425338058,1781699442000,-316.60391869,0.00028272,7]
[425338050,1781699442000,-203.86934656,0.00028272,7]
[425338059,1781699442000,-302.84306491,0.00028272,7]
[425338065,1781699442000,-318.83973682,0.00028274,7]
[425338067,1781699442000,-419.0,0.00028274,2]
[425338054,1781699442000,-338.57237178,0.00028272,7]
[425338066,1781699442000,-347.01489341,0.00028274,7]
[425338064,1781699442000,-404.95867145,0.00028274,7]
[425338057,1781699442000,-224.42460292,0.00028272,7]
[425338056,1781699442000,-344.44232646,0.00028272,7]
[425338062,1781699442000,-318.98421595,0.00028274,7]
[425338068,1781699442000,-206.38271163,0.00028276,7]
[425338063,1781699442000,-243.76040042,0.00028274,7]
[425338074,1781699442000,-4637.79,0.00028563,7]
[425338080,1781699442000,-268.59,0.00028591,7]
[425338070,1781699442000,-505.0,0.00028492,11]
[425338072,1781699442000,-160.0,0.0002853,3]
[425338071,1781699442000,-565.75706884,0.00028514,2]
[425338069,1781699442000,-207.91672601,0.00028276,7]
[425338076,1781699442000,-268.59,0.00028591,2]
[425338078,1781699442000,-268.59,0.00028591,30]
[425338073,1781699442000,-160.0,0.0002853,3]
[425338075,1781699442000,-500.0,0.00028588,2]
[425338079,1781699442000,-268.59,0.00028591,2]
[425338077,1781699442000,-268.59,0.00028591,7]
[425338092,1781699442000,-268.59,0.00028591,7]
[425338061,1781699442000,-211.1129321,0.00028274,7]
[425338049,1781699442000,-354.4,0.00028267,2]
[425338026,1781699442000,-202.47933573,0.00027397,7]
[425338045,1781699442000,-498.94941678,0.00028,14]
[425338082,1781699442000,-268.59,0.00028591,2]
[425338028,1781699442000,-204.03516562,0.00027397,2]
[425338025,1781699442000,-8100.54,0.00027397,10]
[425338027,1781699442000,-192.89614176,0.00027397,2]
[425338030,1781699442000,-172.32014351,0.00027397,2]
[425338031,1781699442000,-216.24868031,0.00027397,2]
[425338029,1781699442000,-187.50831721,0.00027397,2]
[425338024,1781699442000,-9720.65,0.00027397,10]
[425338023,1781699442000,-11664.78,0.00027397,10]
[425338033,1781699442000,-721.66814774,0.00027397,2]
[425338032,1781699442000,-198.73253721,0.00027397,2]
[425338043,1781699442000,-150.0,0.00027973,2]
[425338041,1781699442000,-150.0,0.00027602,5]
[425338055,1781699442000,-238.65219837,0.00028272,2]
[425338034,1781699442000,-12085.21517273,0.00027397,2]
[425338042,1781699442000,-202.0,0.00027808,10]
[425338039,1781699442000,-189.06647421,0.000275,14]
[425338037,1781699442000,-171.01,0.000274,2]
[425338038,1781699442000,-500.0,0.000275,7]
[425338036,1781699442000,-171.01,0.000274,2]
[425338040,1781699442000,-505.0,0.00027538,10]
[425338044,1781699442000,-154.380671,0.00028,2]
[425338048,1781699442000,-81378.7801502,0.00028058,2]
[425338047,1781699442000,-500.0,0.00028057,120]
[425338046,1781699442000,-4000.0,0.00028056,3]
[425338051,1781699442000,-205.35902409,0.00028272,7]
[425338053,1781699442000,-246.23176278,0.00028272,7]
[425338052,1781699442000,-232.52584202,0.00028272,7]
[425338035,1781699442000,-171.01,0.000274,2]
[425338093,1781699442000,-268.59,0.00028591,30]
[425338090,1781699442000,-268.59,0.00028591,30]
[425338087,1781699442000,-268.59,0.00028591,30]
[425338111,1781699442000,-268.25,0.00028682,2]
[425338122,1781699442000,-592.27,0.00028726,7]
[425338121,1781699442000,-592.27,0.00028726,7]
[425338123,1781699442000,-592.27,0.00028726,7]
[425338133,1781699442000,-592.27,0.00028726,7]
[425338135,1781699442000,-592.27,0.00028726,7]
[425338131,1781699442000,-592.27,0.00028726,7]
[425338126,1781699442000,-592.27,0.00028726,7]
[425338125,1781699442000,-592.27,0.00028726,7]
[425338128,1781699442000,-592.27,0.00028726,7]
[425338127,1781699442000,-592.27,0.00028726,7]
[425338139,1781699442000,-592.27,0.00028726,7]
[425338137,1781699442000,-592.27,0.00028726,7]
[425338113,1781699442000,-268.25,0.00028682,7]
[425338129,1781699442000,-592.27,0.00028726,7]
[425338153,1781699442000,-200.0,0.000288,2]
[425338156,1781699442000,-2178.61,0.00028825,7]
[425338155,1781699442000,-324.64,0.00028815,30]
[425338086,1781699442000,-268.59,0.00028591,7]
[425338143,1781699442000,-592.27,0.00028726,7]
[425338145,1781699442000,-592.27,0.00028726,7]
[425338147,1781699442000,-592.27,0.00028726,7]
[425338157,1781699442000,-324.64,0.00028835,7]
[425338154,1781699442000,-2178.61,0.00028804,30]
[425338149,1781699442000,-218.56443812,0.00028767,2]
[425338148,1781699442000,-451.3266062,0.00028766,2]
[425338158,1781699442000,-646.65982734,0.00028846,2]
[425338159,1781699442000,-599.60298507,0.00028846,2]
[425338141,1781699442000,-592.27,0.00028726,7]
[425338115,1781699442000,-268.25,0.00028682,2]
[425338151,1781699442000,-500.0,0.00028767,2]
[425338114,1781699442000,-268.25,0.00028682,30]
[425338110,1781699442000,-268.25,0.00028682,30]
[425338089,1781699442000,-268.59,0.00028591,7]
[425338081,1781699442000,-268.59,0.00028591,30]
[425338083,1781699442000,-268.59,0.00028591,7]
[425338084,1781699442000,-268.59,0.00028591,30]
[425338088,1781699442000,-268.59,0.00028591,2]
[425338095,1781699442000,-268.59,0.00028591,7]
[425338094,1781699442000,-268.59,0.00028591,2]
[425338096,1781699442000,-280.11,0.000286,30]
[425338098,1781699442000,-939.65666677,0.00028645,2]
[425338099,1781699442000,-268.25,0.00028682,2]
[425338105,1781699442000,-268.25,0.00028682,2]
[425338097,1781699442000,-202.0,0.0002863,10]
[425338091,1781699442000,-268.59,0.00028591,2]
[425338102,1781699442000,-268.25,0.00028682,2]
[425338116,1781699442000,-268.25,0.00028682,7]
[425338106,1781699442000,-268.25,0.00028682,7]
[425338119,1781699442000,-268.29,0.00028682,7]
[425338118,1781699442000,-268.25,0.00028682,2]
[425338109,1781699442000,-268.25,0.00028682,7]
[425338120,1781699442000,-592.5,0.00028726,7]
[425338085,1781699442000,-268.59,0.00028591,2]
[425338108,1781699442000,-268.25,0.00028682,2]
[425338107,1781699442000,-268.25,0.00028682,30]
[425338101,1781699442000,-268.25,0.00028682,30]
[425338104,1781699442000,-268.25,0.00028682,30]
[425338100,1781699442000,-268.25,0.00028682,7]
[425338117,1781699442000,-268.25,0.00028682,30]
[425338103,1781699442000,-268.25,0.00028682,7]
[425338178,1781699443000,-168.0,0.00028929,5]
[425338183,1781699443000,-158.67,0.00028941,2]
[425338184,1781699443000,-863.5,0.00028942,30]
[425338185,1781699443000,-158.67,0.0002895,30]
[425338187,1781699443000,-2178.61,0.00028956,7]
[425338191,1781699443000,-158.67,0.00028958,7]
[425338189,1781699443000,-292.0,0.00028956,30]
[425338188,1781699443000,-152.0,0.00028956,30]
[425338190,1781699443000,-157.0,0.00028956,30]
[425338186,1781699443000,-863.5,0.00028951,7]
[425338195,1781699443000,-155.0,0.00028959,30]
[425338200,1781699443000,-182.0,0.00028959,30]
[425338193,1781699443000,-155.0,0.00028959,30]
[425338192,1781699443000,-324.64,0.00028958,7]
[425338197,1781699443000,-413.0,0.00028959,30]
[425338179,1781699443000,-863.5,0.00028932,2]
[425338207,1781699443000,-863.5,0.00028971,30]
[425338205,1781699443000,-863.5,0.00028961,2]
[425338196,1781699443000,-182.0,0.00028959,30]
[425338194,1781699443000,-151.0,0.00028959,30]
[425338203,1781699443000,-152.0,0.00028959,30]
[425338167,1781699443000,-1688.77,0.000289,7]
[425338175,1781699443000,-324.64,0.00028917,2]
[425338199,1781699443000,-153.0,0.00028959,30]
[425338160,1781699443000,-2178.61,0.00028847,2]
[425338161,1781699443000,-324.64,0.00028856,2]
[425338162,1781699443000,-2178.61,0.00028869,30]
[425338169,1781699443000,-5966.77,0.000289,2]
[425338170,1781699443000,-1653.51,0.000289,2]
[425338164,1781699443000,-2178.61,0.00028891,7]
[425338165,1781699443000,-324.64,0.00028897,7]
[425338166,1781699443000,-411.0,0.000289,2]
[425338163,1781699443000,-324.64,0.00028876,30]
[425338168,1781699443000,-1371.8,0.000289,7]
[425338171,1781699443000,-200.0,0.000289,2]
[425338177,1781699443000,-158.67,0.00028925,30]
[425338173,1781699443000,-2178.61,0.00028912,2]
[425338176,1781699443000,-863.5,0.00028922,7]
[425338182,1781699443000,-324.64,0.00028938,30]
[425338181,1781699443000,-2178.61,0.00028934,30]
[425338172,1781699443000,-1329.92,0.000289,2]
[425338174,1781699443000,-863.5,0.00028913,30]
[425338180,1781699443000,-158.67,0.00028933,7]
[425338198,1781699443000,-153.0,0.00028959,30]
[425338231,1781699443000,-250.01993717,0.00029,2]
[425338204,1781699443000,-305.0,0.00028959,30]
[425338230,1781699443000,-188.28168164,0.00029,2]
[425338235,1781699443000,-863.53,0.00029,30]
[425338237,1781699443000,-324.67,0.00029,30]
[425338240,1781699443000,-566.56,0.00029032,30]
[425338233,1781699443000,-1653.51,0.00029,2]
[425338236,1781699443000,-2178.69,0.00029,30]
[425338239,1781699443000,-880.20591356,0.00029,14]
[425338234,1781699443000,-158.75,0.00029,30]
[425338241,1781699443000,-5966.77,0.000291,2]
[425338250,1781699443000,-492.46352557,0.00029125,7]
[425338246,1781699443000,-407.73869312,0.00029125,7]
[425338244,1781699443000,-58502.0,0.000291,2]
[425338245,1781699443000,-180.59909494,0.00029112,2]
[425338243,1781699443000,-1329.92,0.000291,2]
[425338249,1781699443000,-465.05168403,0.00029125,7]
[425338251,1781699443000,-516.66348969,0.00029125,7]
[425338247,1781699443000,-231.56361806,0.00029125,7]
[425338248,1781699443000,-410.71804817,0.00029125,7]
[425338201,1781699443000,-155.0,0.00028959,30]
[425338238,1781699443000,-1329.92,0.00029,2]
[425338232,1781699443000,-229.68214288,0.00029,2]
[425338242,1781699443000,-1653.51,0.000291,2]
[425338224,1781699443000,-225.48,0.00029,2]
[425338206,1781699443000,-158.67,0.00028966,2]
[425338226,1781699443000,-1526.0,0.00029,7]
[425338208,1781699443000,-158.67828309,0.00028973,2]
[425338212,1781699443000,-158.67,0.00028975,30]
[425338214,1781699443000,-324.64,0.00028979,2]
[425338211,1781699443000,-589.52269135,0.00028973,2]
[425338210,1781699443000,-577.33451819,0.00028973,2]
[425338209,1781699443000,-158.98602977,0.00028973,2]
[425338215,1781699443000,-863.5,0.0002898,7]
[425338216,1781699443000,-158.67,0.00028983,7]
[425338213,1781699443000,-2178.61,0.00028978,2]
[425338217,1781699443000,-863.5,0.0002899,2]
[425338219,1781699443000,-553.86,0.00028999,120]
[425338229,1781699443000,-191.80540898,0.00029,2]
[425338220,1781699443000,-275.54972853,0.00028999,2]
[425338222,1781699443000,-500.0,0.00028999,14]
[425338228,1781699443000,-5966.77,0.00029,2]
[425338223,1781699443000,-540.57990238,0.00028999,2]
[425338221,1781699443000,-500.0,0.00028999,120]
[425338225,1781699443000,-151.0,0.00029,7]
[425338218,1781699443000,-158.67,0.00028991,2]
[425338290,1781699444000,-225.79632064,0.0002913,7]
[425338293,1781699444000,-213.87711138,0.0002913,5]
[425338289,1781699444000,-249.22485625,0.0002913,7]
[425338286,1781699444000,-225.47550499,0.0002913,7]
[425338282,1781699444000,-228.60821958,0.0002913,7]
[425338276,1781699444000,-214.85452329,0.0002913,7]
[425338278,1781699444000,-219.40493583,0.0002913,7]
[425338280,1781699444000,-281.77367428,0.0002913,7]
[425338294,1781699444000,-165.71292312,0.0002913,7]
[425338287,1781699444000,-233.0234632,0.0002913,7]
[425338288,1781699444000,-232.01294771,0.0002913,7]
[425338303,1781699444000,-223.18085528,0.0002913,7]
[425338292,1781699444000,-217.74934537,0.0002913,7]
[425338295,1781699444000,-218.69658761,0.0002913,7]
[425338296,1781699444000,-214.65472088,0.0002913,7]
[425338306,1781699444000,-236.01949039,0.0002913,7]
[425338298,1781699444000,-226.39764101,0.0002913,2]
[425338299,1781699444000,-236.39581071,0.0002913,5]
[425338301,1781699444000,-225.43118096,0.0002913,2]
[425338302,1781699444000,-206.49069534,0.0002913,7]
[425338304,1781699444000,-234.21723798,0.0002913,7]
[425338300,1781699444000,-249.41930434,0.0002913,2]
[425338284,1781699444000,-202.69981592,0.0002913,7]
[425338291,1781699444000,-216.68686267,0.0002913,7]
[425338279,1781699444000,-236.16929309,0.0002913,7]
[425338254,1781699444000,-454.26459736,0.00029125,7]
[425338283,1781699444000,-150.39539877,0.0002913,7]
[425338263,1781699444000,-487.52080083,0.00029127,7]
[425338253,1781699444000,-474.90587803,0.00029125,7]
[425338252,1781699444000,-448.84920585,0.00029125,7]
[425338264,1781699444000,-607.43800718,0.00029127,7]
[425338297,1781699444000,-194.47476297,0.0002913,7]
[425338258,1781699444000,-223.6794415,0.00029127,7]
[425338260,1781699444000,-507.85855767,0.00029127,7]
[425338256,1781699444000,-474.9829678,0.00029125,7]
[425338259,1781699444000,-422.22586421,0.00029127,7]
[425338261,1781699444000,-477.30439675,0.00029127,2]
[425338262,1781699444000,-478.47632393,0.00029127,7]
[425338285,1781699444000,-218.10456732,0.0002913,7]
[425338266,1781699444000,-520.52234011,0.00029127,7]
[425338267,1781699444000,-245.6203648,0.0002913,7]
[425338268,1781699444000,-412.76542326,0.0002913,7]
[425338270,1781699444000,-168.11189665,0.0002913,7]
[425338273,1781699444000,-210.49571628,0.0002913,7]
[425338271,1781699444000,-226.89422678,0.0002913,7]
[425338275,1781699444000,-224.48894714,0.0002913,7]
[425338272,1781699444000,-202.62900276,0.0002913,7]
[425338274,1781699444000,-406.37731511,0.0002913,7]
[425338269,1781699444000,-415.83345203,0.0002913,7]
[425338281,1781699444000,-223.34662081,0.0002913,7]
[425338277,1781699444000,-212.12571429,0.0002913,7]
[425338265,1781699444000,-478.25960524,0.00029127,7]
[425338305,1781699444000,-220.8749091,0.0002913,7]
[425338314,1781699444000,-229.21602369,0.0002913,7]
[425338307,1781699444000,-203.95916624,0.0002913,7]
[425338337,1781699444000,-2632.1,0.00029475,2]
[425338339,1781699444000,-2632.1,0.00029475,7]
[425338340,1781699444000,-2632.1,0.00029475,2]
[425338343,1781699444000,-2632.1,0.00029475,2]
[425338341,1781699444000,-2632.1,0.00029475,30]
[425338342,1781699444000,-2632.1,0.00029475,7]
[425338346,1781699444000,-1781.5842,0.000295,14]
[425338344,1781699444000,-2632.17,0.00029475,30]
[425338349,1781699444000,-5840.46742188,0.00029599,2]
[425338348,1781699444000,-1137.37,0.00029589,2]
[425338345,1781699444000,-1316.73540502,0.000295,14]
[425338338,1781699444000,-2632.1,0.00029475,30]
[425338308,1781699444000,-213.15490276,0.0002913,7]
[425338352,1781699444000,-611.60803968,0.00029693,7]
[425338353,1781699444000,-463.12723611,0.00029693,7]
[425338351,1781699444000,-4523.29,0.00029642,30]
[425338354,1781699444000,-616.07707226,0.00029693,7]
[425338355,1781699444000,-619.14813489,0.00029693,7]
[425338358,1781699444000,-673.27380877,0.00029693,7]
[425338356,1781699444000,-392.23222405,0.00029693,7]
[425338360,1781699444000,-605.68612981,0.00029693,7]
[425338357,1781699444000,-697.57752605,0.00029693,7]